fUSD/lending_fUSD_20240628
["ID","MTS","AMOUNT","RATE_DAILY","PERIOD"]
[330550233,1719561207435,-2105.9,0.00022465,3]
[330550234,1719561207445,-1675.94,0.00022465,3]
[330550235,1719561207456,-1285.82,0.00022465,3]
[330550236,1719561207465,-500.0,0.00022465,3]
[330550237,1719561207475,-536.38,0.00022465,3]
[330550238,1719561207485,-500.0,0.00022465,3]
[330550239,1719561207496,-1080.4,0.00022465,3]
[330550240,1719561207506,-1091.76,0.00022465,3]
[330550241,1719561207516,-3936.72,0.00022465,3]
[330550242,1719561207525,-1135.8,0.00022465,3]
[330550243,1719561207535,-500.0,0.00022465,3]
[330550244,1719561207545,-500.0,0.00022465,3]
[330550245,1719561207554,-4738.44,0.00022465,3]
[330550246,1719561207564,-500.0,0.00022465,3]
[330550247,1719561207574,-1651.05,0.00022465,3]
[330550248,1719561207586,-1956.77,0.00022465,3]
[330550249,1719561207595,-614.98,0.00022465,3]
[330550250,1719561207605,-933.08,0.00022465,3]
[330550251,1719561207614,-500.0,0.00022465,3]
[330550252,1719561207627,-280.72,0.00022465,7]
[330550253,1719561207636,-2667.99,0.00022465,3]
[330550254,1719561207646,-823.18,0.00022465,3]
[330550255,1719561207656,-1063.1,0.00022465,3]
[330550256,1719561207666,-6250.57,0.00022465,3]
[330550257,1719561207675,-1293.08,0.00022465,3]
[330550258,1719561207685,-500.0,0.00022465,3]
[330550259,1719561207694,-5103.03,0.00022465,3]
[330550260,1719561207703,-721.31,0.00022465,3]
[330550261,1719561207713,-4756.33,0.00022465,3]
[330550262,1719561207723,-1439.83,0.00022465,3]
[330550263,1719561207734,-500.0,0.00022465,3]
[330550264,1719561207745,-2458.51,0.00022465,3]
[330550265,1719561207754,-500.0,0.00022465,3]
[330550266,1719561207764,-1211.11,0.00022465,3]
[330550267,1719561207773,-770.64,0.00022465,3]
[330550268,1719561207783,-552.09,0.00022465,3]
[330550269,1719561207799,-3750.61,0.00022465,3]
[330550270,1719561207809,-500.0,0.00022465,3]
[330550271,1719561207819,-500.0,0.00022465,3]
[330550272,1719561207829,-2098.22,0.00022465,3]
[330550273,1719561207842,-500.0,0.00022465,3]
[330550274,1719561207851,-754.56,0.00022465,3]
[330550275,1719561207860,-4491.42,0.00022465,3]
[330550276,1719561207872,-500.0,0.00022465,3]
[330550277,1719561207882,-2438.38,0.00022465,3]
[330550278,1719561207892,-2020.73,0.00022465,3]
[330550279,1719561207902,-1992.71,0.00022465,3]
[330550280,1719561207912,-781.62,0.00022465,3]
[330550281,1719561207923,-449.52381612,0.00022465,3]
[330550282,1719561207932,-1432.47,0.00022465,3]
[330550283,1719561207941,-5534.77,0.00022465,3]
[330550284,1719561207953,-500.0,0.00022465,3]
[330550285,1719561207967,-885.59,0.00022465,3]
[330550286,1719561207977,-1548.3,0.00022465,3]
[330550287,1719561207987,-1994.67,0.00022465,3]
[330550288,1719561207996,-1403.1,0.00022465,3]
[330550289,1719561208005,-2686.24,0.00022465,3]
[330550290,1719561208015,-814.93,0.00022465,3]
[330550291,1719561208024,-526.81,0.00022465,3]
[330550292,1719561208033,-4164.92,0.00022465,3]
[330550293,1719561208043,-3931.36,0.00022465,3]
[330550294,1719561208053,-500.0,0.00022465,3]
[330550295,1719561208063,-1627.14,0.00022465,3]
[330550296,1719561208072,-500.0,0.00022465,3]
[330550297,1719561208082,-1739.9,0.00022465,3]
[330550298,1719561208092,-1201.25,0.00022465,3]
[330550299,1719561208103,-823.37,0.00022465,3]
[330550300,1719561208113,-1677.95,0.00022465,3]
[330550301,1719561208123,-500.0,0.00022465,3]
[330550302,1719561208132,-4579.29,0.00022465,3]
[330550303,1719561208141,-2423.48,0.00022465,3]
[330550304,1719561208150,-564.34,0.00022465,3]
[330550305,1719561208159,-196.77223234,0.00022465,3]
[330550306,1719561208167,-500.0,0.00022465,3]
[330550307,1719561208177,-3220.4,0.00022465,3]
[330550308,1719561208186,-500.0,0.00022465,3]
[330550309,1719561208195,-4356.08,0.00022465,3]
[330550310,1719561208204,-2461.19,0.00022465,3]
[330550311,1719561208213,-575.39,0.00022465,3]
[330550312,1719561208222,-848.23,0.00022465,3]
[330550313,1719561208232,-571.54,0.00022465,3]
[330550314,1719561208242,-10448.28,0.00022465,3]
[330550315,1719561208252,-500.0,0.00022465,3]
[330550316,1719561208261,-1688.67,0.00022465,3]
[330550317,1719561208270,-662.7,0.00022465,3]
[330550318,1719561208279,-4745.96,0.00022465,3]
[330550319,1719561208288,-1372.06,0.00022465,3]
[330550320,1719561208297,-504.88,0.00022465,3]
[330550321,1719561208307,-500.0,0.00022465,3]
[330550322,1719561208316,-1056.34,0.00022465,3]
[330550323,1719561208325,-606.3,0.00022465,3]
[330550324,1719561208335,-1074.08,0.00022465,3]
[330550325,1719561208344,-2441.39,0.00022465,3]
[330550326,1719561208354,-2465.9,0.00022465,3]
[330550327,1719561208363,-1390.74,0.00022465,3]
[330550328,1719561208371,-1781.97,0.00022465,3]
[330550329,1719561208381,-935.7,0.00022465,3]
[330550330,1719561208392,-500.0,0.00022465,3]
[330550331,1719561208403,-500.0,0.00022465,3]
[330550332,1719561208413,-500.0,0.00022465,3]
[330550333,1719561208422,-525.03,0.00022465,3]
[330550334,1719561208431,-668.57,0.00022465,3]
[330550335,1719561208440,-500.0,0.00022465,3]
[330550336,1719561208450,-3285.77,0.00022465,3]
[330550337,1719561208459,-1463.5,0.00022465,3]
[330550338,1719561208468,-1552.82,0.00022465,3]
[330550339,1719561208477,-1287.58,0.00022465,3]
[330550340,1719561208486,-1253.08,0.00022465,3]
[330550341,1719561208495,-1221.61,0.00022465,3]
[330550342,1719561208504,-500.0,0.00022465,3]
[330550343,1719561208514,-500.0,0.00022465,3]
[330550344,1719561208523,-2098.47,0.00022465,3]
[330550345,1719561208532,-861.59,0.00022465,3]
[330550346,1719561208541,-1171.21,0.00022465,3]
[330550347,1719561208551,-500.0,0.00022465,3]
[330550348,1719561208560,-3809.85,0.00022465,3]
[330550349,1719561208569,-1526.48,0.00022465,3]
[330550350,1719561208578,-1044.61,0.00022465,3]
[330550351,1719561208589,-500.0,0.00022465,3]
[330550352,1719561208598,-2191.37,0.00022465,3]
[330550353,1719561208607,-2330.29,0.00022465,3]
[330550354,1719561208617,-1251.54,0.00022465,3]
[330550355,1719561208626,-3118.59,0.00022465,3]
[330550356,1719561208636,-1197.85,0.00022465,3]
[330550357,1719561208645,-500.0,0.00022465,3]
[330550358,1719561208654,-532.97,0.00022465,3]
[330550359,1719561208663,-2052.11,0.00022465,3]
[330550360,1719561208672,-500.0,0.00022465,3]
[330550361,1719561208682,-5026.87,0.00022465,3]
[330550362,1719561208692,-1566.0,0.00022465,3]
[330550363,1719561208701,-873.76,0.00022465,3]
[330550364,1719561208711,-3596.87,0.00022465,3]
[330550365,1719561208720,-1698.0,0.00022465,3]
[330550366,1719561208729,-1543.01,0.00022465,3]
[330550367,1719561208739,-3389.93,0.00022465,3]
[330550368,1719561208748,-2335.36,0.00022465,3]
[330550369,1719561208757,-648.91,0.00022465,3]
[330550370,1719561208767,-2869.58,0.00022465,3]
[330550371,1719561208776,-762.46,0.00022465,3]
[330550372,1719561208786,-595.54,0.00022465,3]
[330550373,1719561208795,-638.08,0.00022465,3]
[330550374,1719561208805,-978.5,0.00022465,3]
[330550375,1719561208815,-526.25,0.00022465,3]
[330550376,1719561208824,-780.19,0.00022465,3]
[330550377,1719561208833,-855.45,0.00022465,3]
[330550378,1719561208844,-1166.4,0.00022465,3]
[330550379,1719561208853,-779.68,0.00022465,3]
[330550380,1719561208866,-1703.63,0.00022465,3]
[330550381,1719561208879,-4108.34,0.00022465,3]
[330550382,1719561208888,-783.91,0.00022465,3]
[330550383,1719561208898,-12184.84,0.00022465,3]
[330550384,1719561208909,-655.17,0.00022465,3]
[330550385,1719561208918,-577.58,0.00022465,3]
[330550386,1719561208927,-1494.47,0.00022465,3]
[330550387,1719561208936,-1812.77,0.00022465,3]
[330550388,1719561208945,-1434.26,0.00022465,3]
[330550389,1719561208955,-803.64,0.00022465,3]
[330550390,1719561208964,-500.0,0.00022465,3]
[330550391,1719561208974,-8612.7,0.00022465,3]
[330550392,1719561208983,-500.0,0.00022465,3]
[330550393,1719561208992,-2570.43,0.00022465,3]
[330550394,1719561209001,-2233.3,0.00022465,3]
[330550395,1719561209011,-564.9,0.00022465,3]
[330550396,1719561209020,-833.81,0.00022465,3]
[330550397,1719561209030,-651.19,0.00022465,3]
[330550398,1719561209040,-990.66,0.00022465,3]
[330550399,1719561209049,-1393.07,0.00022465,3]
[330550400,1719561209058,-7571.09,0.00022465,3]
[330550401,1719561209067,-795.17,0.00022465,3]
[330550402,1719561209077,-1571.82,0.00022465,3]
[330550403,1719561209089,-803.77,0.00022465,3]
[330550404,1719561209099,-2442.19,0.00022465,3]
[330550405,1719561209109,-500.0,0.00022465,3]
[330550406,1719561209119,-500.0,0.00022465,3]
[330550407,1719561209129,-500.0,0.00022465,3]
[330550408,1719561209139,-500.0,0.00022465,3]
[330550409,1719561209148,-1017.76,0.00022465,3]
[330550410,1719561209158,-985.98,0.00022465,3]
[330550411,1719561209167,-3900.49,0.00022465,3]
[330550412,1719561209176,-623.56,0.00022465,3]
[330550413,1719561209185,-510.44,0.00022465,3]
[330550414,1719561209194,-673.35,0.00022465,3]
[330550415,1719561209203,-974.54,0.00022465,3]
[330550416,1719561209212,-3626.35,0.00022465,3]
[330550417,1719561209222,-3571.61,0.00022465,3]
[330550418,1719561209231,-537.21226196,0.00022465,3]
[330550419,1719561209240,-914.91,0.00022465,3]
[330550420,1719561209249,-4977.96,0.00022465,3]
[330550421,1719561209259,-1975.34,0.00022465,3]
[330550422,1719561209268,-668.22,0.00022465,3]
[330550423,1719561209278,-929.98,0.00022465,3]
[330550424,1719561209287,-4103.33,0.00022465,3]
[330550425,1719561209297,-690.61,0.00022465,3]
[330550426,1719561209307,-2114.11,0.00022465,3]
[330550427,1719561209316,-1628.46,0.00022465,3]
[330550428,1719561209325,-1444.66,0.00022465,3]
[330550429,1719561209334,-933.49,0.00022465,3]
[330550430,1719561209344,-2888.25,0.00022465,3]
[330550431,1719561209353,-1270.72,0.00022465,3]
[330550432,1719561209363,-3537.73,0.00022465,3]
[330550433,1719561209373,-1988.26,0.00022465,3]
[330550434,1719561209383,-646.8,0.00022465,3]
[330550435,1719561209392,-3537.83,0.00022465,3]
[330550436,1719561209401,-1016.96,0.00022465,3]
[330550437,1719561209411,-4400.98,0.00022465,3]
[330550438,1719561209421,-500.0,0.00022465,3]
[330550439,1719561209431,-500.0,0.00022465,3]
[330550440,1719561209441,-768.32,0.00022465,3]
[330550441,1719561209451,-588.73,0.00022465,3]
[330550442,1719561209462,-1070.33,0.00022465,3]
[330550443,1719561209472,-892.56,0.00022465,3]
[330550444,1719561209483,-743.46,0.00022465,3]
[330550445,1719561209493,-6545.79,0.00022465,3]
[330550446,1719561209503,-1231.54,0.00022465,3]
[330550447,1719561209512,-895.8,0.00022465,3]
[330550448,1719561209522,-500.0,0.00022465,3]
[330550449,1719561209531,-2097.83,0.00022465,3]
[330550450,1719561209540,-500.0,0.00022465,3]
[330550451,1719561209550,-3334.25,0.00022465,3]
[330550452,1719561209682,-3150.03,0.00022465,3]
[330550453,1719561209700,-500.0,0.00022465,3]
[330550454,1719561209710,-500.0,0.00022465,3]
[330550455,1719561209719,-610.61,0.00022465,3]
[330550456,1719561209730,-1099.72,0.00022465,3]
[330550457,1719561209739,-500.0,0.00022465,3]
[330550458,1719561209749,-1552.28,0.00022465,3]
[330550459,1719561209759,-500.0,0.00022465,3]
[330550460,1719561209768,-735.24,0.00022465,3]
[330550461,1719561209778,-1827.69,0.00022465,3]
[330550462,1719561209788,-2422.64,0.00022465,3]
[330550463,1719561209798,-3657.77,0.00022465,3]
[330550464,1719561209807,-500.0,0.00022465,3]
[330550465,1719561209817,-500.0,0.00022465,3]
[330550466,1719561209826,-2088.49,0.00022465,3]
[330550467,1719561209837,-561.79,0.00022465,3]
[330550468,1719561209847,-1243.28,0.00022465,3]
[330550469,1719561209856,-167.01685742,0.00022465,3]
[330550470,1719561209866,-1894.39,0.00022465,3]
[330550471,1719561209880,-890.94,0.00022465,3]
[330550472,1719561209889,-2029.23,0.00022465,3]
[330550473,1719561209899,-14987.84,0.00022465,3]
[330550474,1719561209909,-1128.27,0.00022465,3]
[330550475,1719561209920,-2561.23,0.00022465,3]
[330550476,1719561209930,-500.0,0.00022465,3]
[330550477,1719561209940,-604.19,0.00022465,3]
[330550478,1719561209952,-1302.81,0.00022465,3]
[330550479,1719561209962,-2467.25,0.00022465,3]
[330550480,1719561209974,-580.74,0.00022465,3]
[330550481,1719561209984,-2378.96,0.00022465,3]
[330550482,1719561209994,-519.05,0.00022465,3]
[330550483,1719561210004,-696.42,0.00022465,3]
[330550484,1719561210014,-1077.61,0.00022465,3]
[330550485,1719561210024,-3444.9,0.00022465,3]
[330550486,1719561210033,-383.99290352,0.00022465,3]
[330550487,1719561210044,-1810.22,0.00022465,3]
[330550488,1719561210054,-878.91,0.00022465,3]
[330550489,1719561210063,-5919.42,0.00022465,3]
[330550490,1719561210073,-931.76,0.00022465,3]
[330550491,1719561210085,-1058.14,0.00022465,3]
[330550492,1719561210096,-1072.86,0.00022465,3]
[330550493,1719561210104,-1191.34,0.00022465,3]
[330550494,1719561210115,-1586.1,0.00022465,3]
[330550495,1719561210125,-3215.98,0.00022465,3]
[330550496,1719561210135,-687.47,0.00022465,3]
[330550497,1719561210144,-1219.48,0.00022465,3]
[330550498,1719561210154,-12606.71,0.00022465,3]
[330550499,1719561210163,-836.18,0.00022465,3]
[330550500,1719561210174,-625.82,0.00022465,3]
[330550501,1719561210184,-1319.12,0.00022465,3]
[330550502,1719561210193,-1059.97,0.00022465,3]
[330550503,1719561210203,-1041.16,0.00022465,3]
[330550504,1719561210212,-1776.67,0.00022465,3]
[330550505,1719561210222,-500.0,0.00022465,3]
[330550506,1719561210231,-500.0,0.00022465,3]
[330550507,1719561210242,-833.16,0.00022465,3]
[330550508,1719561210252,-852.24,0.00022465,3]
[330550509,1719561210263,-832.89,0.00022465,3]
[330550510,1719561210275,-500.0,0.00022465,3]
[330550511,1719561210284,-500.0,0.00022465,3]
[330550512,1719561210294,-1285.7,0.00022465,3]
[330550513,1719561210303,-667.48,0.00022465,3]
[330550514,1719561210313,-1115.81,0.00022465,3]
[330550515,1719561210323,-620.27,0.00022465,3]
[330550516,1719561210333,-1542.91,0.00022465,3]
[330550517,1719561210343,-1980.39,0.00022465,3]
[330550518,1719561210352,-500.0,0.00022465,3]
[330550519,1719561210361,-1594.11,0.00022465,3]
[330550520,1719561210372,-500.0,0.00022465,3]
[330550521,1719561210381,-1976.95,0.00022465,3]
[330550522,1719561210391,-1240.01,0.00022465,3]
[330550523,1719561210401,-1834.65,0.00022465,3]
[330550524,1719561210411,-1531.63,0.00022465,3]
[330550525,1719561210420,-893.21,0.00022465,3]
[330550526,1719561210430,-532.59,0.00022465,3]
[330550527,1719561210439,-1176.17,0.00022465,3]
[330550528,1719561210449,-4339.37,0.00022465,3]
[330550529,1719561210459,-500.0,0.00022465,3]
[330550530,1719561210468,-1096.31,0.00022465,3]
[330550531,1719561210478,-791.78,0.00022465,3]
[330550532,1719561210487,-500.0,0.00022465,3]
[330550533,1719561210497,-1124.86,0.00022465,3]
[330550534,1719561210507,-1291.49,0.00022465,3]
[330550535,1719561210516,-504.91,0.00022465,3]
[330550536,1719561210526,-588.38,0.00022465,3]
[330550537,1719561210535,-1924.82,0.00022465,3]
[330550538,1719561210545,-500.0,0.00022465,3]
[330550539,1719561210555,-1639.09,0.00022465,3]
[330550540,1719561210564,-500.0,0.00022465,3]
[330550541,1719561210574,-1061.55,0.00022465,3]
[330550542,1719561210585,-1465.35,0.00022465,3]
[330550543,1719561210595,-500.0,0.00022465,3]
[330550544,1719561210604,-2089.57,0.00022465,3]
[330550545,1719561210614,-734.27,0.00022465,3]
[330550546,1719561210624,-948.23,0.00022465,3]
[330550547,1719561210634,-3576.87,0.00022465,3]
[330550548,1719561210644,-3780.4,0.00022465,3]
[330550549,1719561210653,-500.0,0.00022465,3]
[330550550,1719561210663,-946.83,0.00022465,3]
[330550551,1719561210673,-770.26,0.00022465,3]
[330550552,1719561210683,-3935.43,0.00022465,3]
[330550553,1719561210693,-500.0,0.00022465,3]
[330550554,1719561210702,-1446.14,0.00022465,3]
[330550555,1719561210712,-2365.29,0.00022465,3]
[330550556,1719561210723,-1659.75,0.00022465,3]
[330550557,1719561210734,-500.0,0.00022465,3]
[330550558,1719561210743,-500.0,0.00022465,3]
[330550559,1719561210753,-4503.97,0.00022465,3]
[330550560,1719561210763,-950.23,0.00022465,3]
[330550561,1719561210772,-3311.36,0.00022465,3]
[330550562,1719561210781,-500.0,0.00022465,3]
[330550563,1719561210791,-1322.58,0.00022465,3]
[330550564,1719561210800,-783.88,0.00022465,3]
[330550565,1719561210811,-1914.45,0.00022465,3]
[330550566,1719561210820,-500.0,0.00022465,3]
[330550567,1719561210830,-3498.8,0.00022465,3]
[330550568,1719561210841,-1962.72,0.00022465,3]
[330550569,1719561210851,-500.0,0.00022465,3]
[330550570,1719561210860,-1641.9,0.00022465,3]
[330550571,1719561210874,-500.0,0.00022465,3]
[330550572,1719561210887,-612.16,0.00022465,3]
[330550573,1719561210898,-685.98,0.00022465,3]
[330550574,1719561210909,-637.51,0.00022465,3]
[330550575,1719561210919,-3117.56,0.00022465,3]
[330550576,1719561210928,-1141.3,0.00022465,3]
[330550577,1719561210938,-500.0,0.00022465,3]
[330550578,1719561210949,-4395.4,0.00022465,3]
[330550579,1719561210959,-164.29867853,0.00022465,3]
[330550580,1719561210970,-3970.07,0.00022465,3]
[330550581,1719561210980,-1264.09,0.00022465,3]
[330550582,1719561210989,-2447.28,0.00022465,3]
[330550583,1719561211000,-3602.08,0.00022465,3]
[330550584,1719561211009,-500.0,0.00022465,3]
[330550585,1719561211019,-764.6,0.00022465,3]
[330550586,1719561211029,-8127.46,0.00022465,3]
[330550587,1719561211038,-1319.29,0.00022465,3]
[330550588,1719561211049,-3867.01,0.00022465,3]
[330550589,1719561211059,-2128.6,0.00022465,3]
[330550590,1719561211068,-2004.62,0.00022465,3]
[330550591,1719561211079,-964.57,0.00022465,3]
[330550592,1719561211093,-543.13,0.00022465,3]
[330550593,1719561211103,-2955.61,0.00022465,3]
[330550594,1719561211113,-5636.27,0.00022465,3]
[330550595,1719561211123,-500.0,0.00022465,3]
[330550596,1719561211132,-4918.69,0.00022465,3]
[330550597,1719561211142,-4066.1,0.00022465,3]
[330550598,1719561211151,-664.5,0.00022465,3]
[330550599,1719561211160,-4196.26,0.00022465,3]
[330550600,1719561211170,-2426.91,0.00022465,3]
[330550601,1719561211180,-500.0,0.00022465,3]
[330550602,1719561211190,-500.0,0.00022465,3]
[330550603,1719561211200,-571.57,0.00022465,3]
[330550604,1719561211209,-619.41,0.00022465,3]
[330550605,1719561211219,-503.02251987,0.00022465,3]
[330550606,1719561211228,-1310.02,0.00022465,3]
[330550607,1719561211239,-3529.65,0.00022465,3]
[330550608,1719561211248,-790.68,0.00022465,3]
[330550609,1719561211257,-1259.18,0.00022465,3]
[330550610,1719561211267,-803.47,0.00022465,3]
[330550611,1719561211277,-1996.62,0.00022465,3]
[330550612,1719561211287,-3541.7,0.00022465,3]
[330550613,1719561211297,-863.97,0.00022465,3]
[330550614,1719561211307,-530.3,0.00022465,3]
[330550615,1719561211317,-676.52,0.00022465,3]
[330550616,1719561211327,-7586.47,0.00022465,3]
[330550617,1719561211336,-500.0,0.00022465,3]
[330550618,1719561211347,-731.62,0.00022465,3]
[330550619,1719561211357,-500.0,0.00022465,3]
[330550620,1719561211366,-1475.96,0.00022465,3]
[330550621,1719561211375,-955.45,0.00022465,3]
[330550622,1719561211384,-1270.09,0.00022465,3]
[330550623,1719561211393,-1229.77,0.00022465,3]
[330550624,1719561211403,-2329.0,0.00022465,3]
[330550625,1719561211413,-773.16,0.00022465,3]
[330550626,1719561211422,-1393.57,0.00022465,3]
[330550627,1719561211432,-986.15,0.00022465,3]
[330550628,1719561211442,-1485.78,0.00022465,3]
[330550629,1719561211452,-1707.42,0.00022465,3]
[330550630,1719561211462,-500.0,0.00022465,3]
[330550631,1719561211472,-768.85,0.00022465,3]
[330550632,1719561211481,-2012.41,0.00022465,3]
[330550633,1719561211491,-500.0,0.00022465,3]
[330550634,1719561211500,-921.17,0.00022465,3]
[330550635,1719561211510,-5063.06,0.00022465,3]
[330550636,1719561211519,-2449.33,0.00022465,3]
[330550637,1719561211529,-2037.45,0.00022465,3]
[330550638,1719561211538,-1779.04,0.00022465,3]
[330550639,1719561211548,-500.0,0.00022465,3]
[330550640,1719561211557,-500.0,0.00022465,3]
[330550641,1719561211566,-9301.47,0.00022465,3]
[330550642,1719561211575,-1017.79,0.00022465,3]
[330550643,1719561211584,-2900.72,0.00022465,3]
[330550644,1719561211596,-526.59,0.00022465,3]
[330550645,1719561211605,-663.42,0.00022465,3]
[330550646,1719561211615,-500.0,0.00022465,3]
[330550647,1719561211624,-500.0,0.00022465,3]
[330550648,1719561211634,-674.65,0.00022465,3]
[330550649,1719561211644,-2537.99,0.00022465,3]
[330550650,1719561211653,-500.0,0.00022465,3]
[330550651,1719561211663,-1420.13,0.00022465,3]
[330550652,1719561211672,-1037.85,0.00022465,3]
[330550653,1719561211682,-3320.06,0.00022465,3]
[330550654,1719561211691,-3319.78,0.00022465,3]
[330550655,1719561211700,-56773.66,0.00022465,3]
[330550656,1719561211710,-634.63,0.00022465,3]
[330550657,1719561211720,-555.58,0.00022465,3]
[330550658,1719561211729,-625.07,0.00022465,3]
[330550659,1719561211739,-2200.88,0.00022465,3]
[330550660,1719561211748,-941.38,0.00022465,3]
[330550661,1719561211758,-510.63,0.00022465,3]
[330550662,1719561211767,-2030.64,0.00022465,3]
[330550663,1719561211776,-670.5,0.00022465,3]
[330550664,1719561211785,-1092.89,0.00022465,3]
[330550665,1719561211795,-680.1,0.00022465,3]
[330550666,1719561211805,-500.0,0.00022465,3]
[330550667,1719561211814,-916.14,0.00022465,3]
[330550668,1719561211823,-1305.67,0.00022465,3]
[330550669,1719561211833,-608.88,0.00022465,3]
[330550670,1719561211844,-2094.61,0.00022465,3]
[330550671,1719561211854,-912.19,0.00022465,3]
[330550672,1719561211863,-624.72,0.00022465,3]
[330550673,1719561211878,-3883.66,0.00022465,3]
[330550674,1719561211887,-575.25,0.00022465,3]
[330550675,1719561211897,-1750.92,0.00022465,3]
[330550676,1719561211906,-586.86,0.00022465,3]
[330550677,1719561212255,-1644.79,0.00022465,3]
[330550678,1719561212273,-2240.25,0.00022465,3]
[330550679,1719561212283,-500.0,0.00022465,3]
[330550680,1719561212292,-3442.26,0.00022465,3]
[330550681,1719561212302,-785.73,0.00022465,3]
[330550682,1719561212311,-2119.76,0.00022465,3]
[330550683,1719561212321,-3279.62,0.00022465,3]
[330550684,1719561212331,-1177.19,0.00022465,3]
[330550685,1719561212340,-2812.36,0.00022465,3]
[330550686,1719561212350,-2077.02,0.00022465,3]
[330550687,1719561212359,-500.0,0.00022465,3]
[330550688,1719561212369,-500.0,0.00022465,3]
[330550689,1719561212379,-500.0,0.00022465,3]
[330550690,1719561212388,-500.0,0.00022465,3]
[330550691,1719561212398,-751.3,0.00022465,3]
[330550692,1719561212407,-5691.14,0.00022465,3]
[330550693,1719561212418,-1875.87,0.00022465,3]
[330550694,1719561212428,-2181.6,0.00022465,3]
[330550695,1719561212438,-500.0,0.00022465,3]
[330550696,1719561212448,-1783.03,0.00022465,3]
[330550697,1719561212458,-3820.4,0.00022465,3]
[330550698,1719561212468,-500.0,0.00022465,3]
[330550699,1719561212477,-4551.03,0.00022465,3]
[330550700,1719561212488,-1185.76,0.00022465,3]
[330550701,1719561212498,-500.0,0.00022465,3]
[330550702,1719561212507,-500.0,0.00022465,3]
[330550703,1719561212517,-500.0,0.00022465,3]
[330550704,1719561212526,-500.0,0.00022465,3]
[330550705,1719561212536,-3480.66,0.00022465,3]
[330550706,1719561212545,-195.62608031,0.00022465,3]
[330550707,1719561212555,-1117.03,0.00022465,3]
[330550708,1719561212565,-2776.49,0.00022465,3]
[330550709,1719561212574,-710.75,0.00022465,3]
[330550710,1719561212584,-1555.15,0.00022465,3]
[330550711,1719561212595,-5613.75,0.00022465,3]
[330550712,1719561212605,-3058.96,0.00022465,3]
[330550713,1719561212614,-500.0,0.00022465,3]
[330550714,1719561212624,-500.0,0.00022465,3]
[330550715,1719561212633,-820.14,0.00022465,3]
[330550716,1719561212643,-5538.45,0.00022465,3]
[330550717,1719561212654,-918.65,0.00022465,3]
[330550718,1719561212663,-825.28,0.00022465,3]
[330550719,1719561212673,-515.83,0.00022465,3]
[330550720,1719561212682,-500.0,0.00022465,3]
[330550721,1719561212692,-841.57,0.00022465,3]
[330550722,1719561212701,-500.0,0.00022465,3]
[330550723,1719561212710,-10383.18,0.00022465,3]
[330550724,1719561212720,-4616.67,0.00022465,3]
[330550725,1719561212729,-1039.73,0.00022465,3]
[330550726,1719561212739,-1439.93,0.00022465,3]
[330550727,1719561212749,-6117.5,0.00022465,3]
[330550728,1719561212758,-592.24,0.00022465,3]
[330550729,1719561212768,-1863.96,0.00022465,3]
[330550730,1719561212778,-887.72,0.00022465,3]
[330550731,1719561212787,-3531.61,0.00022465,3]
[330550732,1719561212798,-1143.1,0.00022465,3]